Cogmind - Beta 13 @@@ ROGUE MODE // 2024.06.09 @ 17:09:13 Player: ForestDarkPsy Result: Self-destructed Performance ------------- Evolutions (2) 1000 Regions Visited (3) 600 Robots Destroyed (42) 210 Value Destroyed (1053) 1053 Prototype IDs (3) 60 Alien Tech Used (0) 0 Bonus (0) 0 TOTAL SCORE: 2923 Bonus ------- None Cogmind --------- Core Integrity 539/550 Matter 300/300 Energy 265/265 System Corruption 0% Temperature Cool (0) Movement Rolling (125) Ox3 Location -8/Materials Parts ------- > --- POWER (1) -------- Improved Ion Engine > --- PROPULSION (2) --- Wheel Wheel > --- UTILITY (6) ------ Cooling System Small Storage Unit High-capacity Storage Unit Core Shielding Light Armor Plating Hardened Light Armor Plating > --- WEAPON (2) ------- EM Shotgun EM Shotgun > --- INVENTORY (20) --- Improved Ion Engine Improved Ion Engine Improved Ion Engine Compact Wheel Compact Wheel Cooling System Medium Matter Pod (100) Light Armor Plating Light EM Pulse Cannon Light EM Pulse Cannon Shotgun Shotgun EMP Blaster Datajack Datajack Mace Peak State ------------ > --- POWER ------------ Improved Ion Engine > --- PROPULSION ------- Wheel Wheel > --- UTILITY ---------- Cooling System Small Storage Unit High-capacity Storage Unit Core Shielding Light Armor Plating Hardened Light Armor Plating > --- WEAPON ----------- EM Shotgun EM Shotgun > --- INVENTORY -------- Improved Ion Engine Improved Ion Engine Improved Ion Engine Compact Wheel Compact Wheel Cooling System Medium Matter Pod Light Armor Plating Light EM Pulse Cannon Light EM Pulse Cannon Shotgun Shotgun EMP Blaster Datajack Datajack Mace [Rating: 18] Favorites ----------- Power Ion Engine Engine Ion Engine Propulsion Wheel Wheel Wheel Utility High-capacity Storage Unit Device Seismic Detector Storage High-capacity Storage Unit Processor Signal Interpreter Protection Hardened Light Armor Plating Weapon EM Shotgun Energy Gun EM Shotgun Energy Cannon Light EM Pulse Cannon Special Melee Weapon Datajack Build | -11 -10 -9 -8 ------- Run | Yrd Mat Mat Mat Slots Evolved 4 | . . 2 2 Power . | . . . . Propulsion . | . . . . Utility 4 | . . 2 2 Weapon . | . . . . Parts Attached 37 | 8 11 14 4 Power 7 | 1 2 4 . Engine 7 | 1 2 4 . Core . | . . . . Reactor . | . . . . Propulsion 7 | 3 . 4 . Treads . | . . . . Leg . | . . . . Wheel 7 | 3 . 4 . Hover . | . . . . Flight . | . . . . Utility 12 | 2 3 5 2 Device 3 | 1 1 1 . Storage 4 | 1 1 2 . Processor 1 | . 1 . . Hackware . | . . . . Protection 4 | . . 2 2 Artifact . | . . . . Weapon 11 | 2 6 1 2 Energy Gun 9 | 2 5 1 1 Energy Cannon 1 | . 1 . . Ballistic Gun . | . . . . Ballistic Cannon . | . . . . Launcher . | . . . . Special Weapon . | . . . . Impact Weapon . | . . . . Slashing Weapon . | . . . . Piercing Weapon . | . . . . Special Melee Weapon 1 | . . . 1 Unidentified Prototypes . | . . . . Corrupted Parts 1 | 1 . . . System Corruption 3 | 3 . . . Parts Lost 12 | . 4 8 . Power 2 | . 1 1 . Propulsion 4 | . . 4 . Utility 2 | . . 2 . Weapon 4 | . 3 1 . Highest Loss Streak 3 | . 2 3 . To Critical Strikes . | . . . . Average Slot Usage (%) 98 | . 99 98 97 Engine 12 | . 14 10 9 Wheel 24 | . 28 21 18 Device 12 | . 13 13 9 Storage 17 | . 14 22 18 Protection 4 | . . 7 24 Energy Gun 24 | . 26 21 18 Naked Turns . | . . . . Heaviest Build 69 | 15 52 65 69 Greatest Support 32 | 32 26 26 20 Greatest Overweight (x) 3 | 1 1 3 3 Average Overweight (x) 1 | . . 2 3 Largest Inventory Capacity 20 | 8 20 20 20 Average Capacity 18 | 5 19 20 20 Most Carried 20 | 1 17 20 17 Average Carried 11 | . 9 15 16 Final Capacity 20 | 8 20 20 20 Final Carried 18 | 1 17 18 16 Class Distribution -------------------- 100% | Mutant Dominant Class ---------------- Mutant | -10/Materials Mutant | -9/Materials Mutant | -8/Materials Resources | -11 -10 -9 -8 ----------- Run | Yrd Mat Mat Mat Matter Collected 715 | 267 223 185 40 Remotely . | . . . . Salvage Created 1590 | 19 803 656 112 Parts 98 | 3 47 41 7 Haulers Intercepted 2 | . 2 . . Recyclers Shooed . | . . . . Parts Field Recycled . | . . . . Retrieved Matter . | . . . . Parts Self-Destructed . | . . . . Prevented . | . . . . Kills | -11 -10 -9 -8 ------- Run | Yrd Mat Mat Mat Combat Hostiles Destroyed 33 | . 17 14 2 Guns 26 | . 13 11 2 AOE 7 | . 4 3 . Classes Destroyed 9 | 1 5 3 . Tunneler 1 | 1 . . . Hauler 2 | . 2 . . Recycler 1 | . 1 . . Operator 1 | . . 1 . Watcher 4 | . 2 2 . Swarmer 10 | . 6 4 . Grunt 17 | . 11 5 1 Brawler 2 | . . 1 1 Sentry 4 | . . 4 . Best Kill Streak 5 | 1 4 5 2 Combat Bots Only 5 | . 3 5 2 Max Kills in Single Turn 3 | 1 2 3 1 Gunslinging 1 | . 1 . . Exploded 3 | . 2 3 . Melee . | . . . . Uniques/NPCs Destroyed . | . . . . Combat | -11 -10 -9 -8 -------- Run | Yrd Mat Mat Mat Hostile Shots Fired 118 | . 49 63 6 Missed 38 | . 13 21 4 Damage Taken 1090 | . 465 599 26 Core 214 | . 100 103 11 Absorbed by Shields . | . . . . Redirected to Shielding 2 | . . . 2 Core Remaining (%) 78 | 100 60 74 . Volleys Fired 79 | 2 36 36 5 Largest 2 | 2 2 2 2 Hottest 96 | 80 96 90 90 Shots Fired 159 | 4 71 74 10 Gun 157 | 4 69 74 10 Cannon 2 | . 2 . . Launcher . | . . . . Special . | . . . . Kinetic . | . . . . Thermal . | . . . . Explosive . | . . . . Electromagnetic 159 | 4 71 74 10 Robot Hit Streak 18 | 2 13 18 17 Robot Miss Streak 5 | 1 2 5 2 Penetration Max . | . . . . Secondary Targets 3 | . 2 . 1 Max Gunslinging Chain 1 | . 1 . 1 Shots Hit Robots 121 | 2 49 59 11 Core Hits 73 | 1 29 34 9 Critical Kills . | . . . . Critical Parts Destroyed . | . . . . Critical Strikes . | . . . . Melee Attacks 1 | . . . 1 Impact . | . . . . Slashing . | . . . . Piercing . | . . . . Sneak Attacks 1 | . . . 1 Combat Hostiles 1 | . . . 1 Follow-up Attacks . | . . . . Damage Inflicted 2222 | 28 914 1135 145 Guns 1779 | 28 688 918 145 Cannons 23 | . 23 . . Explosions 397 | . 193 204 . Melee . | . . . . Ramming 23 | . 10 13 . Kinetic . | . . . . Thermal 397 | . 193 204 . Explosive . | . . . . Electromagnetic 1802 | 28 711 918 145 Impact . | . . . . Slashing . | . . . . Piercing . | . . . . Highest Corruption 7 | 3 4 7 . Average Corruption 4 | 3 3 7 . Corruption Purged . | . . . . Corruption Blocked . | . . . . Effects 43 | . 25 18 . Message Errors 12 | . 9 3 . Matter Fused 11 | . 7 4 . Heat Flow Errors 5 | . 3 2 . Energy Discharges 5 | . 2 3 . Parts Rejected 2 | . 1 1 . Parts Fused 1 | . 1 . . Data Loss (minor) 3 | . 2 1 . Misfires 3 | . . 3 . Weapon Failures 1 | . . 1 . Overload Shots . | . . . . Overflow Damage 51 | . 51 . . Projectiles . | . . . . Explosions 51 | . 51 . . Melee . | . . . . Knockbacks 1 | . . 1 . Impact 1 | . . 1 . Kinetic . | . . . . Secondary . | . . . . Self-Inflicted Damage 186 | . 109 77 . Shots 6 | . 4 2 . Rammed 3 | . 1 2 . Targets Rammed 3 | . 1 2 . Kicked . | . . . . Crushed . | . . . . Highest Temperature 231 | 36 231 191 . Average Temperature 63 | 20 65 70 . Received Heat Transfer 360 | . 144 198 18 Siege Activations . | . . . . Robots Corrupted 1 | . 1 . . Combat Hostiles . | . . . . Parts Fried 5 | . 2 3 . Impact Corruptions . | . . . . Robots Melted . | . . . . Combat Hostiles . | . . . . Parts Melted . | . . . . Heat Transferred 500 | . 300 200 . Parts Sabotaged . | . . . . Parts Stolen . | . . . . Parts Stripped . | . . . . Power Chain Reactions 8 | . 5 3 . Alert | -11 -10 -9 -8 ------- Run | Yrd Mat Mat Mat Peak Influence 289 | 5 289 275 195 Initial 115 | . 3 53 115 Average 108 | 3 115 101 156 Maximum Alert Level 1 | . 1 1 . Low Security (%) 85 | 100 86 80 100 Level 1 14 | . 13 19 . Level 2 . | . . . . Level 3 . | . . . . Level 4 . | . . . . Level 5 . | . . . . High Security . | . . . . Max Security . | . . . . Squads Dispatched 5 | . 3 2 . Investigation 3 | . 2 1 . Extermination . | . . . . Reinforcement 2 | . 1 1 . Assault . | . . . . Garrison . | . . . . Intercept . | . . . . Searches Triggered . | . . . . Construction Impeded . | . . . . Haulers Reinforced . | . . . . Active Scanning Responses . | . . . . Cargo Convoy Interrupts . | . . . . Stealth | -11 -10 -9 -8 --------- Run | Yrd Mat Mat Mat Distress Signals 3 | . 2 1 . Communications Jammed . | . . . . Distress Signals . | . . . . Times Spotted 50 | . 24 21 5 Peak Tracking Total 5 | . 4 5 3 Tactical Retreats 3 | . 1 2 . Traps | -11 -10 -9 -8 ------- Run | Yrd Mat Mat Mat Traps Triggered 2 | . 1 1 . Indirectly . | . . . . Trap Hack Attempts . | . . . . Triggered . | . . . . Disarmed . | . . . . Reprogrammed . | . . . . Reused . | . . . . Traps Extracted . | . . . . Installed . | . . . . Triggered . | . . . . Machines | -11 -10 -9 -8 ---------- Run | Yrd Mat Mat Mat Machines Disabled 2 | . 2 . . Max in Single Turn 2 | . 2 . . Machines Repaired . | . . . . Machines Dismantled . | . . . . Machines Sabotaged . | . . . . Overloaded Fab Kills . | . . . . Hacking | -11 -10 -9 -8 --------- Run | Yrd Mat Mat Mat Machines Accessed 13 | . 7 6 . Terminals 12 | . 7 5 . Fabricators . | . . . . Repair Stations . | . . . . Recycling Units . | . . . . Scanalyzers 1 | . . 1 . Garrison Access . | . . . . Total Hacks 40 | . 20 20 . Successful 25 | . 12 13 . Failed 15 | . 8 7 . Catastrophic 1 | . . 1 . Database Lockouts . | . . . . Manual 16 | . 8 8 . Terminals 39 | . 20 19 . Fabricators . | . . . . Repair Stations . | . . . . Recycling Units . | . . . . Scanalyzers 1 | . . 1 . Garrison Access . | . . . . Terminal Hacks 18 | . 9 9 . Robot Analysis 2 | . 2 . . Prototype ID Bank 2 | . 1 1 . Terminal Index 2 | . 1 1 . Unreport Threat 2 | . 1 1 . Locate Traps 4 | . 2 2 . Hauler Manifests 1 | . . 1 . Registered Components 2 | . 1 1 . Zone Layout 3 | . 1 2 . Fabricator Hacks . | . . . . Repair Station Hacks . | . . . . Recycling Unit Hacks . | . . . . Scanalyzer . | . . . . Garrison Access Hacks . | . . . . Unauthorized Hacks 7 | . 3 4 . Terminals 7 | . 3 4 . Botnet 7 | . 3 4 . Fabricators . | . . . . Repair Stations . | . . . . Recycling Units . | . . . . Scanalyzers . | . . . . Garrison Access . | . . . . Data Cores Recovered . | . . . . Used . | . . . . Hacking Detections 11 | . 6 5 . Full Trace Events . | . . . . Feedback Events . | . . . . Feedback Blocked . | . . . . Robot Schematics Acquired . | . . . . Robots Built . | . . . . Authchips . | . . . . Time . | . . . . Total Robot Build Rating . | . . . . Part Schematics Acquired . | . . . . Parts Built . | . . . . Authchips . | . . . . Time . | . . . . Total Part Build Rating . | . . . . Parts Repaired . | . . . . Time . | . . . . Parts Recycled . | . . . . Recycled Matter . | . . . . Retrieved Matter . | . . . . Retrieved Components . | . . . . Parts Scanalyzed . | . . . . Part Schematics Acquired . | . . . . Parts Damaged . | . . . . Bothacking | -11 -10 -9 -8 ------------ Run | Yrd Mat Mat Mat Used RIF Installer . | . . . . Robots Hacked . | . . . . Non-combat . | . . . . Combat . | . . . . Robot Hacks Applied . | . . . . Relay Couplers Released . | . . . . Fabnet Peak Effective % . | . . . . Robots Rewired 1 | . . . 1 Allies Hacked . | . . . . Hacks Repelled . | . . . . Allies | -11 -10 -9 -8 -------- Run | Yrd Mat Mat Mat Total Allies 1 | . . . 1 Largest Group 1 | . . . 1 Highest-Rated Group 16 | . . . 16 Highest-Rated Ally 16 | . . . 16 Total Orders . | . . . . Ally Attacks 2 | . . . 2 Total Damage 31 | . . . 31 Kills . | . . . . Allies Corrupted . | . . . . Allies Melted . | . . . . Intel | -11 -10 -9 -8 ------- Run | Yrd Mat Mat Mat Robot Analysis Total 2 | . 2 . . Derelict Logs Recovered . | . . . . Drone Launches . | . . . . Drone Recoveries . | . . . . Exploration | -11 -10 -9 -8 ------------- Run | Yrd Mat Mat Mat Turns Passed 2036 | 81 1029 792 134 Spaces Moved 1427 | 70 764 508 85 Core 13 | 13 . . . Treads . | . . . . Legs . | . . . . Wheels 1414 | 57 764 508 85 Hover . | . . . . Flight . | . . . . Fastest Speed 50 | 50 90 110 125 Average Speed 110 | 88 104 119 125 Slowest Speed 125 | 100 105 125 125 Overloaded Moves . | . . . . Propulsion Burnouts . | . . . . Robots Hopped . | . . . . Cave-ins Triggered . | . . . . Exploration Rate (%) 39 | 4 98 45 9 Regions Visited 3 Branch Regions . Pre-discovered Areas . | . . . . Known Exits Taken 1 | . 1 . . Unknown Exits Taken 2 | 1 . 1 . Scrap Searched . | . . . . Spaces Dug . | . . . . Terrain Destroyed 27 | . 17 10 . Melee . | . . . . Projectile . | . . . . AOE 27 | . 17 10 . Terrain Rammed . | . . . . Walls Destroyed . | . . . . Machines Disabled . | . . . . Actions | -11 -10 -9 -8 --------- Run | Yrd Mat Mat Mat Total 1724 | 80 925 618 101 Wait 140 | . 91 43 6 Move 1424 | 69 763 507 85 Hop . | . . . . Pick Up 32 | 1 20 11 . Fast Attach 14 | 7 3 4 . Attach 15 | . 5 8 2 Detach . | . . . . Swap 8 | 1 3 2 2 Drop 8 | . 3 5 . Fire 79 | 2 36 36 5 Melee 1 | . . . 1 Ram 3 | . 1 2 . Kick . | . . . . Crush . | . . . . Escape Stasis . | . . . . Rewire . | . . . . Trap . | . . . . Miscellaneous . | . . . . Route ------- -11/Scrapyard -10/Materials (discovered 5 exits: *Mat x3 / *Min x2) -9/Materials -8/Materials History --------- Turn | Location | Event 11 | -11/Scrapyard | Discovered new exit (range 16) 82 | -11/Scrapyard | Entered Materials 315 | -10/Materials | Build established: Mutant 317 | -10/Materials | Discovered new exit (range 11) 393 | -10/Materials | Discovered new exit (range 12) 471 | -10/Materials | Identified exit to Materials 503 | -10/Materials | Identified exit to Mines 635 | -10/Materials | Discovered exit to Mines (range 7) 774 | -10/Materials | Discovered exit to Materials (range 11) 1069 | -10/Materials | Discovered exit to Materials (range 16) 1111 | -10/Materials | Entered another Materials area 1111 | -9/Materials | Evolved 2 slots: Utility x2 1316 | -9/Materials | Lost 3 parts (2n1u) 1877 | -9/Materials | Discovered new exit (range 16) 1903 | -9/Materials | Entered another Materials area 1903 | -8/Materials | Evolved 2 slots: Utility x2 2037 | -8/Materials | Self-destructed Last Messages --------------- 01835_ System corrupted: EM Shotgun misfires. 01855_ System corrupted: Matter fused (-8). 01871_ Acquired 8 matter. 01877_ EXIT=FOUND 01901_ System corrupted: FCS attempts to trigger EM Shotgun. 01901_ System corrupted: EM Shotgun misfires. PARAMETERS=UTILITY+2 LOCATION=UNKNOWN GOAL=ESCAPE 01916_ K-01 Serf collects debris. 01944_ B-36 Bruiser destroyed. 01944_ Switching to secondary target: G-47 Trooper. 01950_ G-47 Trooper destroyed. 01953_ Acquired 20 matter. 01958_ G-47 Trooper shuts down. 01965_ Sneak attack on G-47 Trooper. 01965_ G-47 Trooper rewired. 01968_ Acquired 10 matter. 01986_ Connecting with Terminal... 01986_ Current location identified: Materials Map ----- +----------------------------------------------------+ | ????????????????########### # ?????????? | | ????????????????# # # """ #????????? | | ????????????????# # # """ #????????? | | ????????????????# # # """ #????????? | | ????????????????# """ + + """ #????????? | | ????????????????# """ " " # # """ #????????? | | ????????????????# """ "T" # # #????????? | | ????????????????# """ # # ! #????????? | | ????????????????# # # #????????? | | ????????????????###########= ##########????????? | | ??????????????????# =#= #?????????????????? | | ??????????????????# !%+%! #?????????????????? | | ??????????????????# /#[ #?????????????????? | | ??????????????????###+##### #?????????????????? | | ???????????????????## ##### #####?????????????? | | ???????????????????# #?????????????? | | ???????????????????# #?????????????? | | ???????????????????# #?????????????? | | ???????????????????# ####+####?????????????? | | ???????????????????# ## #?????????????? | | ???????????????????# ## #?????????????? | | ????????????##+#+### ## #?????????????? | | ????????????# ^^ ## #?????????????? | | ????????????+ ## #?????????????? | | ????????????# g ## #?????????????? | | ????????????####+########@#########?????????????? | | ????????????????????????+ ??????? | | ????????????????????????# ??????? | | ????????????????????????## #####/### ##?????????? | | ?????????????????????????# #????????????????????? | | ?????????????????????????# #????????????????????? | | ?????????????????????????# #????????????????????? | | ?????????????????????????# #????????????????????? | | ????????????????????????? +????????????????????? | | ?????????????????????????###????????????????????? | | ????????????????????????????????????????????????? | | ????????????????????????????????????????????????? | | ????????????????????????????????????????????????? | | ????????????????????????????????????????????????? | | ????????????????????????????????????????????????? | | ????????????????????????????????????????????????? | | ????????????????????????????????????????????????? | | ????????????????????????????????????????????????? | | ????????????????????????????????????????????????? | | ????????????????????????????????????????????????? | | ????????????????????????????????????????????????? | | ????????????????????????????????????????????????? | | ????????????????????????????????????????????????? | | ????????????????????????????????????????????????? | | ????????????????????????????????????????????????? | +----------------------------------------------------+ Best States ------------- Heat Dissipation 53 Energy Generation 12 Energy Capacity 365 Matter Stores 300 Matter Capacity 300 Sight Range 16 Terrain Scan Density 10 Armor Coverage 300 Core Shielding 20 Evasion (%) 42 Item Schematics ----------------- None Robot Schematics ------------------ None Fabricated ------------ Nothing Alien Tech Used ----------------- None Achievements -------------- None Challenges ------------ None Game ------ Seed WeaponsEtherialWeb Manual? 0 Play Time 00:30:23 Cumulative 184.6 hours Start 2024.05.26 @ 12:36:13 End 2024.06.09 @ 17:09:13 Sessions 5 Manual Loads 0 Difficulty Rogue Special Mode None Game No. 157 Rogue 157 Adventurer 0 Explorer 0 Win Type - Total 0 Types 0/0/0/0/0/0/0/0/0 Lore% 40 Gallery% 47 Achievement% 39 Wizard Run 0 Options --------- Layout 0 ASCII 1 Keyboard 0 Movement Mouse Keybinds 0 Fullscreen 1 Font 18/SmallcapsGlow Map View 76x50 Zoom Use 0% Tactical HUD 1 Map Filters NONE Filters NONE Steam 1 RUN: e9ce8166-2951-4298-99b9-514c8b7103c3